{"text_format":"1","workbook":"xlsx","n_sheets":1,"sheets":["Signalisation"],"not_rendered":{"charts":0,"images":103,"macros":0,"external_links":2,"defined_names":7,"comments":0,"pivot_tables":0},"unopened":[],"bounds":{"document_bytes":16777216,"sheet_cells":100000,"rows_first":2000,"rows_last":500,"rows_between":2000,"halvings":0,"cell_chars":16384,"cell_head_chars":4096},"cells_cut":0,"cells_raw":0,"read":"whole","date_system":"1900"}

{"sheet":"Signalisation","index":0,"n_rows":107,"n_cols":8,"rows_kept":107,"cut":false,"hidden":false,"merged":[[1,2,1,4],[0,2,0,4]]}
[]
["Références Aqueduc",null,"INVENTAIRE DE SIGNALISATION ANNUEL",null,null,null,"DATE:"]
[]
["Photo","Article","Description","Catégorie","Référence","Unité ($) ","Inventaire","Total ($)"]
[null,"T-130","Indique la présence d’un obstacle sur la chaussée qui peut être contournée par la droite ou par la gauche. conformément aux dessins normalisés du présent chapitre.","Balise à chevron","Référence Tome         V : 4.24",0,null,{"$f":"SUM(F5*G5)","v":0}]
[null,"TR-V-2","Repères visuels qui servent à canaliser la circulation dans une aire de travail","Balise de travaux","Référence Tome         V : 4.5.3",0,null,{"$f":"SUM(F6*G6)","v":0}]
[null,"TR-V-7","Repères visuels qui servent à canaliser la circulation dans une aire de travail.","Repères visuels","Référence Tome         V : 4.5.3",0,null,0]
[null,"T-RV-06","Les barils (T-RV-6) sont des repères visuels qui servent à canaliser la circulation.","Repères visuels","Référence Tome         V :  4.5.3",0,null,0]
[null," T-RV-08","Les balises de travaux (T-RV-8) sont des repères visuels qui servent à canaliser la circulation dans une aire de travail","Repères visuels","Référence Tome         V :  4.5.3",0,null,0]
[null,"T-RV-09","Les balises de travaux (T-RV-9) sont des repères visuels qui servent à canaliser la circulation dans une aire de travail.","Repères visuels","Référence Tome         V :  4.5.3",0,null,0]
[null,"T-RV-10","Les balises tubulaires (T-RV-10) servent à canaliser la circulation. Ces balises, de couleur orange, portent des bandes horizontales rétroréfléchissantes et doivent avoir les dimensions minimales indiquées au tableau 4.5-6. Les balises tubulaires doivent être utilisées seulement pour délimiter ou séparer des voies de circulation lorsque l’espace restant accessible à la circulation est restreint et que l’utilisation des autres repères visuels est impossible sans nuire à la circulation.","Repères visuels","Référence Tome         V :  4.5.5",0,null,0]
[null," T-RV-11","La minibalise (T-RV-11) est un repère visuel servant à canaliser la circulation. Elle doit être placée seulement sur le dessus des glissières pour chantiers lorsque celle-ci est utilisée pour délimiter une aire de travail et séparer des voies de circulation. ","Repères visuels","Référence Tome         V :  4.5.6",0,null,0]
[null,"T-RV-12","Les délinéateurs temporaires de surface(DTS) servent à guider les usagers de la route en l'absence de marquage. Les DTS sont installés lorsque la circulation doit être rétablie après la pose d’une couche d’enrobé ou lorsque les lignes de marquage sont effacées. Ils sont espacés de 20 m dans les sections droites et de 10 m dans les courbes. Les DTS ont une forme en « L » de couleur blanche ou jaune. ","Repères visuels","Référence Tome         V :  4.5.7",0,null,0]
[null,"T-RV-13","Les minichevrons (T-RV-13) servent à diriger la circulation dans les biseaux de déviation ou les courbes formées par des glissières pour chantiers, lorsque les chevrons ne peuvent pas être utilisés.","Repères visuels","Référence Tome         V :  4.5.8",0,null,0]
[null,"T-B-01","Les barrières (T-B) servent à fermer en tout ou en partie un chemin public à la circulation.","Barricades","Référence Tome         V : 4.6",0,null,0]
[null,"T-B-02","Sert à fermer entièrement la rue lors de tavaux","Barricades","Référence Tome         V : 4.6",0,null,0]
[null,"T-RV-3","Les cônes de signalisation (T- RV-3) doit être utilisés uniquement lors de travaux de très courte et de courte durée. Ils ne doit pas être utilisés sur le réseau autoroutier. à l’exception des cas prévus aux dessins normalisés du Tome V","Cônes","Référence Tome         V : 4.5.2",0,null,0]
[null,"T-D-30","Le panneau « Signal avancé de cédez le passage à la circulation venant en sens inverse » (T-D-30) indique. à l’avance. la proximité d’un\npanneau « Cédez le passage à la circulation venant en sens inverse ».","Panneau visuel","Référence Tome         V : 4 Annexe B",0,null,0]
[null,"T-D-340","Le panneau « Changement de l'état d'une chaussée » (T-D-340) indique l'approche d'une chaussée rainurée ou. sur un pont. d'un tablier en treillis métallique ou en bois.","Panneau visuel","Référence Tome         V : 4-Annexe B",0,null,0]
[null,"T-D-350","Le panneau «Fin du revêtement» (T-D-350) indique l'approche de la fin d'une chaussée avec revêtement et le commencement d'une autre en gravier ou en terre.","Panneau visuel","Référence Tome         V : 4-Annexe B"]
[null,"T-D-210-2-D","Le panneau « Chaussée rétrécie » (T-D-210 D) à droite indique qu’il y a réduction de la largeur de la chaussée. mais qu’il n’y a pas de réduction du nombre de voies de circulation.","Panneau visuel","Référence Tome         V : 4-Annexe",0,null,0]
[null,"T-D-210-2-G","Le panneau « Chaussée rétrécie » (T-D-210 G) à gauche indique qu’il y a réduction de la largeur de la chaussée. mais qu’il n’y a pas de réduction du nombre de voies de circulation.","Panneau visuel","Référence Tome         V : 4-Annexe",0,null,0]
[null,"T-D-210-1","Le panneau « Chaussée rétrécie » (T-D-210-1) indique qu’il y a réduction de la largeur de la chaussée mais qu’il n’y a pas de réduction du nombre de voies de circulation.","Panneau visuel","Référence Tome         V :  4-Annexe B",0,null,0]
[null," T-D-10-1","Le panneau « Signal avancé d'arrêt » (T-D-10-1) indique. à l'avance. la proximité d'un panneau « Arrêt ». Ce panneau doit être installé lorsque la distance permettant de voir le panneau « Arrêt » est inférieure à la distance de visibilité d'arrêt. ","Panneau visuel","Référence Tome         V :  4-Annexe B",0,null,0]
[null,"T-D-80","Le panneau « Circulation à double sens » (T-D-80) indique l’approche d’une section de chemin où la circulation s’effectue à double sens.","Panneau visuel","Référence Tome         V : 4-Annexe B",0,null,0]
[null,"T-90-10-G","Le panneau « Détour » vers la gauche\n(T-90-10-G) indique la direction de l'itinéraire de détour prévu que doit suivre les usagers de la route en raison des travaux.","Panneau visuel","Référence Tome         V : 4.20.1",0,null,0]
[null,"T-90-10-D","Le panneau « Détour » vers la droite (T-90-10-D) indique la direction de l'itinéraire de détour prévu que doit suivre les usagers de la route en raison des travaux.","Panneau visuel","Référence Tome         V : 4.20.1"]
[null,"T-90-1","Le panneau « Détour » (T-90-1) indique la direction de l'itinéraire de détour prévu que\ndoit suivre les usagers de la route en raison des travaux.","Panneau visuel","Référence Tome         V : 4.20.1",0,null,0]
[null,"T-90-3-D","Le panneau « Détour » vers la droite (T-90-3-D) indique la direction de l'itinéraire de détour prévu que doit suivre les usagers de la route en raison des travaux.","Panneau visuel","Référence Tome         V : 4.20.1",0,null,0]
[null,"T-90-3-G","Le panneau « Détour » (T-90-3-G) indique la direction de l'itinéraire de détour prévu que doit suivre les usagers de la route en raison des travaux.","Panneau visuel","Référence Tome         V : 4.20.1",0,null,0]
[null,"T-90-2-D","Le panneau « Détour » à droite (T-90-2-D) indique la direction de l'itinéraire de détour prévu que doit suivre les usagers de la route en raison des travaux.","Panneau visuel","Référence Tome         V : 4.20.1",0,null,0]
[null,"T-90-2-G","Le panneau « Détour » à gauche (T-90-2-G) indique la direction de l'itinéraire de détour prévu que doit suivre les usagers de la route en raison des travaux.","Panneau visuel","Référence Tome         V : 4.20.1",0,null,0]
[null,"T-90-6-D","Le panneau « Détour pour cyclistes à droite » (T-90-6-D) indique la direction du chemin de détour que doit suivre les cyclistes en raison des travaux.","Panneau visuel","Référence Tome         V : 7.10.2",0,null,0]
[null,"T-90-6-G","Le panneau « Détour pour cyclistes à gauche » (T-90-6-G) indique la direction du chemin de détour que doit suivre les cyclistes en raison des travaux.","Panneau visuel","Référence Tome         V : 7.10.2",0,null,0]
[null,"T-90-16-D","Le panneau « Détour pour piétons à droite » (T-90-16 -D) indique la direction du chemin de détour à suivre par les piétons en raison de travaux.","Panneau visuel","Référence Tome         V : 4.20.4",0,null,0]
[null,"T-90-16-G","Le panneau « Détour pour piétons » à gauche (T-90-16 -G) indique la direction du chemin de détour à suivre par les piétons en raison de travaux.","Panneau visuel","Référence Tome         V : 4.20.4",0,null,0]
[null,"T-90-13-D","Le panneau\n« Détour pour piétons et cyclistes » (T-90-13-D) Droite indique la direction du chemin de détour à suivre par les piétons et les cyclistes en raison de travaux.","Panneau visuel","Référence Tome         V : 4.20.4",0,null,0]
[null,"T-90-13-G","Le panneau\n« Détour pour piétons et cyclistes » (T-90-13-G) Gauche indique la direction du chemin de détour à suivre par les piétons et les cyclistes en raison de travaux.","Panneau visuel","Référence Tome         V : 4.20.4",0,null,0]
[null,"T-50-12","Le panneau « Évènement\n» (T-50-12) indique la présence d’un évènement culturel. artistique ou communautaire se tenant sur un chemin public.","Panneau visuel","Référence Tome         V : 4.14.11",0,null,0]
[null,"T-40","Le panneau « Fin des travaux » (T-40) indique la fin d’une aire de travail.","Panneau visuel","Référence Tome         V : 4.13",0,null,0]
[null,"T-D-130-1-D","Les panneaux\n« Flèche directionnelle »\n(T-D-130-1-D) Droite indiquent la présence d’un point particulièrement dangereux dans une courbe en coude ou dans une intersection en forme de T","Panneau visuel","Référence Tome         V : 4-Annexe B",0,null,0]
[null,"T-D-130-2","Les panneaux\n« Flèche directionnelle » (T-D-130-2) Double sens Indiquent la présence d’un point particulièrement dangereux dans une courbe en coude ou dans une intersection en forme de T","Panneau visuel","Référence Tome         V : 4-Annexe B",0,null,0]
[null,"T-D-130-1-G","Les panneaux « Flèche directionnelle » Gauche (T-D-130-1-G) indiquent la présence d’un point particulièrement dangereux dans une courbe en coude ou dans une intersection en forme de T","Panneau visuel","Référence Tome         V : 4-Annexe B",0,null,0]
[null,"T-120","Le panneau\n« Flèche oblique » (T-120) indique une direction à suivre au début du biseau qui ferme en partie ou en totalité une voie de circulation.\nP.S : Il peut servir pour la gauche et la droite.","Panneau visuel","Référence Tome         V : 4.23",0,null,0]
[null,"T-D-110-1-D","Les panneaux «Virages» (T-D-110) indiquent la proximité d’une ou de plusieurs courbes sur un chemin public. Le panneau de virage approprié ainsi que la signalisation à installer dans les courbes doivent être choisis conformément au Tome V. ","Panneau visuel","Référence Tome         V : 4-Annexe B",0,null,0]
[null,"T-D-110-1-G","Les panneaux «Virages» (D-110) indiquent la proximité d’une ou de plusieurs courbes sur un chemin public. Le panneau de virage approprié ainsi que la signalisation à installer dans les courbes doivent être choisis conformément au Tome V. ","Panneau visuel","Référence Tome         V : 4-Annexe B",0,null,0]
[null,"T-D-110-2-D","Les panneaux «Virages» (D-110.) indiquent la proximité d’une ou de plusieurs courbes sur un chemin public. Le panneau de virage approprié ainsi que la signalisation à installer dans les courbes doivent être choisis conformément au Tome V. ","Panneau visuel","Référence Tome         V : 4-Annexe B",0,null,0]
[null,"T-D-110-2-G","Les panneaux «Virages» (D-110) indiquent la proximité d’une ou de plusieurs courbes sur un chemin public. Le panneau de virage approprié ainsi que la signalisation à installer dans les courbes doivent être choisis conformément au Tome V.","Panneau visuel","Référence Tome         V : 4-Annexe B",0,null,0]
[null,"T- 100-1-D","Le panneau « Fusion de voies » (T- 100-1-Droite) indique. sur un chemin public comportant plus d’une voie de circulation dans le même sens. qu’une des voies de circulation est temporairement fermée en raison de travaux et qu’il y a lieu d’emprunter celle demeurée ouverte à la circulation.","Panneau visuel","Référence Tome         V : 4.21",0,null,0]
[null,"T- 100-1-G","Le panneau « Fusion de voies » (T- 100-1-Gauche) indique. sur un chemin public comportant plus d’une voie de circulation dans le même sens. qu’une des voies de circulation est temporairement fermée en raison de travaux et qu’il y a lieu d’emprunter celle demeurée ouverte à la circulation.","Panneau visuel","Référence Tome         V : 4.21",0,null,0]
[null,"T-80-2","Les panneaux T-80-2. indiquent que l’endroit visé par le panneau est temporairement fermé à la circulation. Ces panneaux doivent être accompagnés des panneaux « Détour » (T-90).","Panneau visuel","Référence Tome         V : 4.19",0,null,0]
[null,"T-80-3","Les panneaux T-80-3. indiquent que l’endroit visé par le panneau est temporairement fermé à la circulation. Ces panneaux doivent être accompagnés des panneaux « Détour » (T-90).","Panneau visuel","Référence Tome         V : 4.19",0,null,0]
[null,"T-75","Les panneaux « Réglementation temporaire du stationnement » (T-75) indiquent les endroits où le stationnement est interdit de façon temporaire à proximité d’une aire de travail ou lors d’événements spéciaux et d’opérations d’entretien routier. Lorsqu’ils sont utilisés. ces panneaux ont priorité sur la réglementation des panneaux\n« Stationnement réglementé » (P-150).","Panneau visuel","Référence Tome         V : 4.17",0,null,0]
[null,"T-D- 270-2-D","Le panneau « Signal avancé de passage pour piétons » (T-D- 270-2-Droite) indique à l’avance la présence d’un passage pour piétons dans une zone de travaux. Ce panneau doit toujours précéder le panneau de signalisation « Passage pour piétons » (P-270-2).","Panneau visuel","Référence Tome         V : 4.42.4.2",0,null,0]
[null,"T-D- 270-2-G","Le panneau « Signal avancé de passage pour piétons » (T-D- 270-2-Gauche) indique à l’avance la présence d’un passage pour piétons dans une zone de travaux. Ce panneau doit toujours précéder le panneau de signalisation « Passage pour piétons » (P-270-2).","Panneau visuel","Référence Tome         V : 4.42.4.2",0,null,0]
[null,"T-60","Le panneau « Signal avancé du signaleur routier » (T-60) indique. à l’avance. la présence d’un signaleur routier dirigeant la circulation.","Panneau visuel","Référence Tome         V : 4.15",0,null,0]
[null,"T-160-2","Les panneaux « Travaux de marquage » (T-160-2) indiquent que des travaux de marquage sont effectués sur un chemin public. Le panneau T-160-2 doit être installé sur le véhicule traceur.","Panneau visuel","Référence Tome         V : 4.27",0,null,0]
[null,"T-160-1","Les panneaux « Travaux de marquage » (T-160-1) indiquent que des travaux de marquage sont effectués sur un chemin public.","Panneau visuel","Référence Tome         V : 4.27",0,null,0]
[null,"T-81-1","Le panneau « Utiliser l’autre trottoir » (T-81-1) indique la direction du chemin de détour à suivre par les piétons et les cyclistes en raison de travaux. Ce panneau doit être installé aux endroits appropriés pour indiquer le parcours à emprunter par les piétons et les cyclistes.","Panneau visuel","Référence Tome         V : 4.20.4",0,null,0]
[null,"T-81-2","Le panneau « Utiliser passage temporaire » (T-81-2) indique la direction du chemin de détour à suivre par les piétons et les cyclistes en raison de travaux.\nCe panneau doit être installé aux endroits appropriés pour indiquer le parcours à emprunter par les piétons et les cyclistes.","Panneau visuel","Référence Tome         V : 4.20.4",0,null,0]
[null,"T-80-8","Le panneau « Voie cyclable barrée » (T-80-8) indique qu’une voie cyclable est temporairement fermée à la circulation. Ce panneau doit être installé sur la barrière fermant le passage à la circulation et doit être accompagné du panneau\n« Détour » (T-90).","Panneau visuel","Référence Tome         V : 7.10.1",0,null,0]
[null,"T- 90-19","Le panneau « Voies barrées pour cyclistes et piétons » (T- 90-19) indique que les voies pour les cyclistes et les piétons sont barrées en raison de travaux.","Panneau visuel","Référence Tome         V : Annexe B",0,null,0]
[null,"T-80-P","Les panneaux T-80-1 à T-80-8. indiquent que l’endroit visé par le panneau est temporairement fermé à la circulation. Le panonceau de circulation locale seulement (T-80-P). qui peut être associé à l’un ou l’autre des panneaux décrits précédemment. permet une circulation locale seulement aux résidants. aux clients des commerces ou aux travailleurs dont le lieu de travail est situé dans l'endroit fermé.","Panneau visuel","Référence Tome         V : 4.19",0,null,0]
[null,"T-50-1","Le panneau « Zone de travaux\n» (T-50-1) indique la présence d'une zone de travaux sur une voie de circulation ou aux abords de celle-ci.","Panneau visuel","Référence Tome         V : 4.14.1",0,null,0]
[null,"T-100-2-D","Le panneau « Fusion de voies » (T-100-2-D) indique. sur un chemin public comportant plus d’une voie de circulation dans le même sens. qu’une des voies de circulation est temporairement fermée en raison de travaux et qu’il y a lieu d’emprunter celles demeurées ouvertes à la circulation.","Panneau visuel","Référence Tome         V : 4.21",0,null,0]
[null,"T-100-2-G","Le panneau « Fusion de voies » (T-100-2-G) indique. sur un chemin public comportant plus d’une voie de circulation dans le même sens. qu’une des voies de circulation est temporairement fermée en raison de travaux et qu’il y a lieu d’emprunter celles demeurées ouvertes à la circulation.","Panneau visuel","Référence Tome         V : 4.21",0,null,0]
[null,"T-100-3-D","Le panneau « Fusion de voies » (T-100-3-D) indique. sur un chemin public comportant plus d’une voie de circulation dans le même sens. qu’une des voies de circulation est temporairement fermée en raison de travaux et qu’il y a lieu d’emprunter celles demeurées ouvertes à la circulation.","Panneau visuel","Référence Tome         V : 4.21",0,null,0]
[null," T-100-3-G","Le panneau « Fusion de voies » (T-100-3-G) indique. sur un chemin public comportant plus d’une voie de circulation dans le même sens. qu’une des voies de circulation est temporairement fermée en raison de travaux et qu’il y a lieu d’emprunter celles demeurées ouvertes à la circulation.","Panneau visuel","Référence Tome         V : ",0,null,0]
[null," T-100-4-D","Le panneau « Fusion de voies » (T-100-4-D) indique. sur un chemin public comportant plus d’une voie de circulation dans le même sens. qu’une des voies de circulation est temporairement fermée en raison de travaux et qu’il y a lieu d’emprunter celles demeurées ouvertes à la circulation.","Panneau visuel","Référence Tome         V : 4.21",0,null,0]
[null," T-100-4-G","Le panneau « Fusion de voies » (T-100-4-G) indique. sur un chemin public comportant plus d’une voie de circulation dans le même sens. qu’une des voies de circulation est temporairement fermée en raison de travaux et qu’il y a lieu d’emprunter celles demeurées ouvertes à la circulation.","Panneau visuel","Référence Tome         V : 4.21",0,null,0]
[null," T-100-5","Le panneau « Direction des voies » (T-100-5) indique la voie dans laquelle l'usager de la route doit se ranger pour effectuer une manoeuvre lors de travaux dans un carrefour giratoire.","Panneau visuel","Référence Tome         V :  5-Annexe B",0,null,0]
[null,"T-110-10","Le panneau « Déviation de voie dans un carrefour giratoire » (T-110-10) indique que la circulation est déviée de part et d'autre de l'îlot déviateur lors de travaux dans un carrefour giratoire.","Panneau visuel","Référence Tome         V : 4.22",0,null,0]
[null,"T-110-11","Le panneau « Déviation de voie dans un carrefour giratoire » (T-110-11) indique que la circulation est déviée de part et d'autre de l'îlot déviateur lors de travaux dans un carrefour giratoire.","Panneau visuel","Référence Tome         V :4.22 ",0,null,0]
[null,"T-110-1-D","Les panneaux « Déviation de voie » (T-110-1-D) indiquent. à l’avance. que la circulation est déviée vers la droite en raison de travaux","Panneau visuel","Référence Tome         V : 4.22",0,null,0]
[null,"T-110-1-G","Les panneaux « Déviation de voie » (T-110-1-G) indiquent. à l’avance. que la circulation est déviée vers la gauche en raison de travaux.","Panneau visuel","Référence Tome         V : 4.22",0,null,0]
[null," T-110-2-D","Les panneaux « Déviation de voie » (T-110-2-D) indiquent. à l’avance. que la circulation est déviée sur 2 voies vers la droite en raison de travaux.","Panneau visuel","Référence Tome         V : 4.22",0,null,0]
[null,"T-110-2-G","Les panneaux « Déviation de voie » (T-110-2-G) indiquent. à l’avance. que la circulation est déviée sur 2 voies vers la gauche en raison de travaux.","Panneau visuel","Référence Tome         V : 4.22",0,null,0]
[null,"T-110-3-D","Les panneaux « Déviation de voie » (T-1103-D) indiquent. à l’avance. que la circulation est déviée en raison de travaux.","Panneau visuel","Référence Tome         V : 4.22",0,null,0]
[null,"T-110-3-G","Les panneaux « Déviation de voie » (T-110-3-G) indiquent. à l’avance. que la circulation est déviée en raison de travaux.","Panneau visuel","Référence Tome         V : 4.22",0,null,0]
[null," T-110-4-D","Les panneaux « Déviation de voie » (T-110-4-D) indiquent. à l’avance. que la circulation est déviée en raison de travaux.","Panneau visuel","Référence Tome         V : 4.22",0,null,0]
[null," T-110-4-G","Les panneaux « Déviation de voie » (T-110-4-G) indiquent. à l’avance. que la circulation est déviée en raison de travaux.","Panneau visuel","Référence Tome         V : 4.22",0,null,0]
[null," T-110-5-D","Les panneaux « Déviation de voie » (T-110-5-D) indiquent. à l’avance. que la circulation est déviée en raison de travaux.","Panneau visuel","Référence Tome         V : 4.22",0,null,0]
[null," T-110-5-G","Les panneaux « Déviation de voie » (T-110-5-G) indiquent. à l’avance. que la circulation est déviée en raison de travaux.","Panneau visuel","Référence Tome         V : 4.22",0,null,0]
[null,"T-110-6","Les panneaux «Déviation de voie» (T-110-6) indiquent. à l’avance. que la circulation est déviée en raison de travaux.","Panneau visuel","Référence Tome         V : 4.22",0,null,0]
[null,"T-110-7-D","Les panneaux « Déviation de voie » (T-110-7-D) indiquent à l’avance que la circulation est déviée en raison de travaux.","Panneau visuel","Référence Tome         V : 4.22",0,null,0]
[null,"T-110-7-G","Les panneaux « Déviation de voie » (T-110-7-G) indiquent à l’avance que la circulation est déviée en raison de travaux.","Panneau visuel","Référence Tome         V : 4.22",0,null,0]
[null,"T-110-8-D","Les panneaux «Déviation de voie» (T-110-8-D) indiquent. à l’avance. que la circulation est déviée en raison de travaux.","Panneau visuel","Référence Tome         V : 4.22",0,null,0]
[null," T-110-8-G","Les panneaux «Déviation de voie» (T-110) indiquent. à l’avance. que la circulation est déviée en raison de travaux.","Panneau visuel","Référence Tome         V : 4.22",0,null,0]
[null,"T-110-9-D","Les panneaux «Déviation de voie» (T-110-9-D) indiquent. à l’avance. que la circulation est déviée en raison de travaux.","Panneau visuel","Référence Tome         V : 4.22",0,null,{"$f":"SUM(F89*G89)","v":0}]
[null,"T-110-9-G","Les panneaux «Déviation de voie» (T-110-9-G) indiquent. à l’avance. que la circulation est déviée en raison de travaux.","Panneau visuel","Référence Tome         V : 4.22",0,null,0]
[null,"T-140-D","Le panneau « Présence d’une dénivellation » (T-140-D) indique la présence d’une dénivellation supérieure ou égale à 50 mm entre la chaussée et l’accotement. ou entre l’accotement et le terrain naturel ou entre deux voies.","Panneau visuel","Référence Tome         V : 4.25",0,null,0]
[null," T-140-G","Le panneau « Présence d’une dénivellation » (T-140) indique la présence d’une dénivellation supérieure ou égale à 50 mm entre la chaussée et l’accotement. ou entre l’accotement et le terrain naturel ou entre deux voies.","Panneau visuel","Référence Tome         V : 4.25",0,null,0]
[null,"T-50-11-D","Lorsque les travaux sont réalisés dans une bretelle de sortie ou aux abords de celle-ci. le panneau T-50-11 doit être installé comme suit et conformément à la figure 4.14–2 :\n\na) Si la séquence de panneaux menant à l’aire de travail ne se poursuit pas sur la route principale. le panneau T-50-11 doit être installé à une distance 2B du début du biseau de la bretelle de sortie.\n\nb) Si la séquence de panneaux menant à l’aire de travail se poursuit sur la route principale. le panneau T-50-11 doit être installé en lieu et place du panneau T-50-1.\n\nLe panneau T-50-11-D doit être utilisé pour les bretelles de sortie à droite.","Panneau visuel","Référence Tome         V : 4.14.1",0,null,0]
[null,"T-50-11-G","Lorsque les travaux sont réalisés dans une bretelle de sortie ou aux abords de celle-ci. le panneau T-50-11 doit être installé comme suit et conformément à la figure 4.14–2 :\n\na) Si la séquence de panneaux menant à l’aire de travail ne se poursuit pas sur la route principale. le panneau T-50-11 doit être installé à une distance 2B du début du biseau de la bretelle de sortie.\n\nb) Si la séquence de panneaux menant à l’aire de travail se poursuit sur la route principale. le panneau T-50-11 doit être installé en lieu et place du panneau T-50-1.\n\nLe panneau T-50-11-G doit être utilisé pour les bretelles de sortie à gauche.","Panneau visuel","Référence Tome         V : 4.14.1",0,null,0]
[null,"T-D-50-1","Le panneau «Signal avancé de feux de circulation» (T-D-50-1) indique. à l’avance. la proximité de feux réglant la circulation à une intersection. ","Panneau visuel","Référence Tome         V :  4-Annexe B",0,null,0]
[null,"T-D-90-3","Le panneau « Chaussées séparées » (T-D-90-3) indique l’approche du début d’une chaussée séparée ou d'un îlot ralentisseur.","Panneau visuel","Référence Tome         V : 4-Annexe B",0,null,{"$f":"SUM(F96*G96)","v":0}]
[null,"T-50-4","Le panneau « Travaux mécanisés » (T-50-4) indique la présence de machinerie lourde effectuant des travaux sur une voie de circulation ou aux abords de celle-ci.","Panneau visuel","Référence Tome         V : 4.14.4",0,null,0]
[null,"T-70-1-30","Les panneaux «Limite de vitesse» (T-70) indiquent la vitesse maximale autorisée à proximité d’une aire de travail. Elle doit être indiquée par un nombre dont le dernier chiffre est 0.","Panneau visuel","Référence Tome         V : 4.16",0,null,0]
[null," T-70-2-30","Les panneaux «Limite de vitesse» (T-70) indiquent la vitesse maximale autorisée à proximité d’une aire de travail. Elle doit être indiquée par un nombre dont le dernier chiffre est 0","Panneau visuel","Référence Tome         V : 4.16",0,null,0]
[null," T-80-11","Les panneaux T-80-1 à T-80-11 indiquent que l’endroit visé par le panneau est temporairement fermé à la circulation. Ces panneaux doivent être accompagnés des panneaux « Détour » (T-90).","Panneau visuel","Référence Tome         V : 4.19.1",0,null,0]
[null,"T-80-4","Les panneaux T-80-1 à T-80-11, indiquent que l’endroit visé par le panneau est temporairement fermé à la circulation. Ces panneaux doivent être accompagnés des panneaux « Détour » (T-90).","Panneau visuel","Référence Tome         V : 4.19",0,null,0]
[null,"T-80-5","Les panneaux T-80-1 à T-80-11, indiquent que l’endroit visé par le panneau est temporairement fermé à la circulation. Ces panneaux doivent être accompagnés des panneaux « Détour » (T-90)","Panneau visuel","Référence Tome         V : 4.19",0,null,0]
[null,"T-80-6","Les panneaux T-80-1 à T-80-11, indiquent que l’endroit visé par le panneau est temporairement fermé à la circulation. Ces panneaux doivent être accompagnés des panneaux « Détour »  (T-90)","Panneau visuel","Référence Tome         V : 4.19",0,null,0]
[null," T-81-1","Le panneau « Utiliser l’autre trottoir » (T-81-1) indique la direction du détour à suivre par les piétons et les cyclistes en raison de travaux. Ce panneau doit être installé aux endroits appropriés pour indiquer le parcours à emprunter par les piétons et les cyclistes.","Panneau visuel","Référence Tome         V : 4.20.4",0,null,0]
[null," T-81-2","Le panneau « Utiliser passage temporaire » (T-81-2) indique la direction du détour à suivre par les piétons et les cyclistes en raison de travaux. Ce panneau doit être installé aux endroits appropriés pour indiquer le parcours à emprunter par les piétons et les cyclistes.","Panneau visuel","Référence Tome         V : 4.20.4",0,null,0]
[null,"T-D-280","Le panneau «Fin d’une voie ou d’un chemin» (T-D-280) indique la fin d’un chemin public ou la fin d’une voie sur un chemin public comportant une voie de circulation dans chaque sens. ","Panneau visuel","Référence Tome         V : 4-Annexe B",0,null,{"$f":"SUM(F106*G106)","v":0}]
[null,null,null,null,null,null,"            Total:",{"$f":"SUM(H28:H106)","v":0}]